[Event "*** Titled Tuesday Blitz"]
[Site "Chess.com"]
[Date "2020.01.07"]
[Round "4"]
[White "mersad_98"]
[Black "SlavenPastar"]
[Result "1-0"]
[WhiteElo "2756"]
[BlackElo "2526"]
[TimeControl "180+2"]
[EndTime "13:56:39 PST"]
[Termination "mersad_98 won on time"]

1. e4 {[%clk 0:03:01.6]} 1... e5 {[%clk 0:02:59.8]} 2. Nf3 {[%clk 0:03:02.8]}
2... Nc6 {[%clk 0:02:57.2]} 3. Bb5 {[%clk 0:03:04.1]} 3... Nf6 {[%clk
0:02:57.8]} 4. O-O {[%clk 0:03:04.7]} 4... Nxe4 {[%clk 0:02:58.9]} 5. d4 {[%clk
0:03:06.4]} 5... Nd6 {[%clk 0:02:58.5]} 6. Bxc6 {[%clk 0:03:08]} 6... dxc6
{[%clk 0:03:00.4]} 7. dxe5 {[%clk 0:03:09.9]} 7... Nf5 {[%clk 0:03:01.5]} 8.
Qxd8+ {[%clk 0:03:11.5]} 8... Kxd8 {[%clk 0:03:03.4]} 9. Rd1+ {[%clk 0:03:13.1]}
9... Ke8 {[%clk 0:03:04.8]} 10. Nc3 {[%clk 0:03:15]} 10... h5 {[%clk 0:02:58.6]}
11. h3 {[%clk 0:03:15.6]} 11... Be7 {[%clk 0:02:56.3]} 12. Ne2 {[%clk
0:03:16.2]} 12... Be6 {[%clk 0:02:46]} 13. Nf4 {[%clk 0:03:17.6]} 13... Rd8
{[%clk 0:02:26.9]} 14. Rxd8+ {[%clk 0:03:17.5]} 14... Bxd8 {[%clk 0:02:10.4]}
15. Nxe6 {[%clk 0:02:59.6]} 15... fxe6 {[%clk 0:02:12.3]} 16. Ng5 {[%clk
0:03:01.1]} 16... Rh6 {[%clk 0:01:08.1]} 17. Ne4 {[%clk 0:02:37.4]} 17... Rg6
{[%clk 0:01:07]} 18. c3 {[%clk 0:02:26.5]} 18... Nh4 {[%clk 0:01:04.2]} 19. Ng3
{[%clk 0:02:28]} 19... Nxg2 {[%clk 0:00:19.6]} 20. Kxg2 {[%clk 0:02:29.9]} 20...
h4 {[%clk 0:00:21.1]} 21. Kf3 {[%clk 0:02:06.6]} 21... hxg3 {[%clk 0:00:20.6]}
22. fxg3 {[%clk 0:02:08.5]} 22... Bg5 {[%clk 0:00:21]} 23. Bf4 {[%clk 0:02:10]}
23... Bxf4 {[%clk 0:00:20]} 24. Kxf4 {[%clk 0:02:11.9]} 24... Rh6 {[%clk
0:00:17.7]} 25. Rh1 {[%clk 0:02:12.9]} 25... Rh8 {[%clk 0:00:16.8]} 26. g4
{[%clk 0:02:05.7]} 26... Ke7 {[%clk 0:00:17.3]} 27. h4 {[%clk 0:02:00.3]} 27...
Rd8 {[%clk 0:00:17.4]} 28. Rh2 {[%clk 0:01:50.9]} 28... Rd1 {[%clk 0:00:17.3]}
29. h5 {[%clk 0:01:47.5]} 29... Re1 {[%clk 0:00:15.9]} 30. g5 {[%clk 0:01:46.3]}
30... Rf1+ {[%clk 0:00:16.7]} 31. Kg4 {[%clk 0:01:43.6]} 31... Rg1+ {[%clk
0:00:17.7]} 32. Kf4 {[%clk 0:01:43.5]} 32... Rf1+ {[%clk 0:00:18.9]} 33. Kg3
{[%clk 0:01:30.5]} 33... Rg1+ {[%clk 0:00:19.7]} 34. Rg2 {[%clk 0:01:29.4]}
34... Rh1 {[%clk 0:00:20.8]} 35. Kg4 {[%clk 0:01:07.9]} 35... Re1 {[%clk
0:00:21.6]} 36. h6 {[%clk 0:00:45.8]} 36... gxh6 {[%clk 0:00:19.6]} 37. gxh6
{[%clk 0:00:47.7]} 37... Rh1 {[%clk 0:00:20.8]} 38. Kg5 {[%clk 0:00:48.3]} 38...
Kf7 {[%clk 0:00:18.8]} 39. Rf2+ {[%clk 0:00:48.8]} 39... Kg8 {[%clk 0:00:05.3]}
40. Rf6 {[%clk 0:00:47.5]} 40... Rg1+ {[%clk 0:00:05.4]} 41. Kh5 {[%clk
0:00:43.2]} 41... Rh1+ {[%clk 0:00:06.5]} 42. Kg4 {[%clk 0:00:44.3]} 42... Rg1+
{[%clk 0:00:08.4]} 43. Kf4 {[%clk 0:00:41.1]} 43... Kh7 {[%clk 0:00:04.8]} 44.
Rxe6 {[%clk 0:00:40.5]} 44... Rg2 {[%clk 0:00:03.5]} 45. b4 {[%clk 0:00:29.6]}
45... Rxa2 {[%clk 0:00:04.1]} 46. Rf6 {[%clk 0:00:21.4]} 46... Rf2+ {[%clk
0:00:03.9]} 47. Kg5 {[%clk 0:00:22.5]} 47... Rg2+ {[%clk 0:00:04.9]} 48. Kf5
{[%clk 0:00:23.7]} 48... Rc2 {[%clk 0:00:02.8]} 49. e6 {[%clk 0:00:22.9]} 49...
Re2 {[%clk 0:00:03.7]} 50. Rf7+ {[%clk 0:00:16.1]} 50... Kxh6 {[%clk 0:00:04.5]}
51. Rxc7 {[%clk 0:00:18]} 51... a5 {[%clk 0:00:03.5]} 52. bxa5 {[%clk
0:00:17.7]} 52... Rf2+ {[%clk 0:00:03.2]} 53. Ke5 {[%clk 0:00:18.6]} 53... Re2+
{[%clk 0:00:04.8]} 54. Kf6 {[%clk 0:00:19.4]} 54... Rf2+ {[%clk 0:00:03.8]} 55.
Ke7 {[%clk 0:00:20.2]} 55... Kg6 {[%clk 0:00:05.3]} 56. Rxb7 {[%clk 0:00:21.1]}
56... Re2 {[%clk 0:00:06.4]} 57. a6 {[%clk 0:00:22.4]} 57... Kf5 {[%clk
0:00:06.2]} 58. a7 {[%clk 0:00:23.6]} 58... Rxe6+ {[%clk 0:00:07.2]} 59. Kd7
{[%clk 0:00:25.3]} 1-0

[Event "*** Titled Tuesday Blitz"]
[Site "Chess.com"]
[Date "2020.01.07"]
[Round "4"]
[White "Karacsonyi_Gellert"]
[Black "MathiasWomacka"]
[Result "0-1"]
[WhiteElo "2542"]
[BlackElo "2353"]
[TimeControl "180+2"]
[EndTime "13:56:50 PST"]
[Termination "MathiasWomacka won by resignation"]

1. e4 {[%clk 0:03:01.9]} 1... c5 {[%clk 0:03:01]} 2. Nf3 {[%clk 0:03:02.6]} 2...
d6 {[%clk 0:03:02.2]} 3. d4 {[%clk 0:03:04]} 3... cxd4 {[%clk 0:03:04.1]} 4.
Nxd4 {[%clk 0:03:05.6]} 4... Nf6 {[%clk 0:03:05.2]} 5. Nc3 {[%clk 0:03:07.1]}
5... a6 {[%clk 0:03:06.6]} 6. Bc4 {[%clk 0:03:08.5]} 6... e6 {[%clk 0:03:07.5]}
7. O-O {[%clk 0:03:09.9]} 7... b5 {[%clk 0:03:08.4]} 8. Bb3 {[%clk 0:03:10.9]}
8... Be7 {[%clk 0:03:08.7]} 9. Qf3 {[%clk 0:03:11.8]} 9... Qb6 {[%clk
0:03:07.7]} 10. Be3 {[%clk 0:03:12.1]} 10... Qb7 {[%clk 0:03:08.9]} 11. Qg3
{[%clk 0:03:13.6]} 11... b4 {[%clk 0:03:08.2]} 12. Na4 {[%clk 0:03:10.1]} 12...
Nbd7 {[%clk 0:03:09.1]} 13. f3 {[%clk 0:02:07]} 13... O-O {[%clk 0:03:08.4]} 14.
a3 {[%clk 0:02:07.4]} 14... Ne5 {[%clk 0:02:48.7]} 15. axb4 {[%clk 0:02:02.1]}
15... Qxb4 {[%clk 0:02:47.4]} 16. Nc3 {[%clk 0:02:00.7]} 16... Bd7 {[%clk
0:02:41.6]} 17. Qf2 {[%clk 0:01:54.5]} 17... Rfc8 {[%clk 0:02:21]} 18. Rfd1
{[%clk 0:01:53.9]} 18... Nc4 {[%clk 0:02:21.4]} 19. Bxc4 {[%clk 0:01:53.7]}
19... Rxc4 {[%clk 0:02:21.6]} 20. Nb3 {[%clk 0:01:50.9]} 20... a5 {[%clk
0:02:10]} 21. Nd2 {[%clk 0:01:31.1]} 21... Rcc8 {[%clk 0:02:07.9]} 22. Rab1
{[%clk 0:01:23.9]} 22... a4 {[%clk 0:02:07.8]} 23. Na2 {[%clk 0:01:17.7]} 23...
Qb7 {[%clk 0:02:06.2]} 24. c3 {[%clk 0:01:17]} 24... e5 {[%clk 0:01:51.6]} 25.
Nb4 {[%clk 0:01:16.7]} 25... d5 {[%clk 0:01:48.7]} 26. exd5 {[%clk 0:01:15.4]}
26... Nxd5 {[%clk 0:01:49.7]} 27. Nxd5 {[%clk 0:01:16.3]} 27... Qxd5 {[%clk
0:01:51.2]} 28. Ne4 {[%clk 0:01:17.1]} 28... Qc6 {[%clk 0:01:48.9]} 29. Qg3
{[%clk 0:01:17]} 29... f6 {[%clk 0:01:41.3]} 30. Bh6 {[%clk 0:01:15.8]} 30... g6
{[%clk 0:01:42]} 31. Be3 {[%clk 0:01:16.5]} 31... Bf5 {[%clk 0:01:42.8]} 32. Qh4
{[%clk 0:01:01]} 32... Rd8 {[%clk 0:01:36.9]} 33. h3 {[%clk 0:00:47.2]} 33...
Rab8 {[%clk 0:01:22.3]} 34. Rxd8+ {[%clk 0:00:45]} 34... Rxd8 {[%clk 0:01:20.6]}
35. Kh2 {[%clk 0:00:46.1]} 35... g5 {[%clk 0:01:13.7]} 36. Nxg5 {[%clk
0:00:32.4]} 36... fxg5 {[%clk 0:01:12.8]} 37. Bxg5 {[%clk 0:00:33.4]} 37... Bxb1
{[%clk 0:01:05.3]} 38. Bxe7 {[%clk 0:00:33.9]} 38... Rd7 {[%clk 0:01:04.7]} 39.
Qg5+ {[%clk 0:00:29.3]} 39... Qg6 {[%clk 0:00:37.3]} 40. Qxe5 {[%clk 0:00:27.1]}
40... Rd2 {[%clk 0:00:38.1]} 41. Qb8+ {[%clk 0:00:20.7]} 41... Kf7 {[%clk
0:00:27.1]} 42. Qf4+ {[%clk 0:00:22.1]} 42... Kxe7 {[%clk 0:00:28]} 43. Qxd2
{[%clk 0:00:24]} 43... Qd6+ {[%clk 0:00:24.6]} 44. Qxd6+ {[%clk 0:00:22.7]}
44... Kxd6 {[%clk 0:00:25.1]} 45. f4 {[%clk 0:00:23]} 45... Kc5 {[%clk
0:00:24.9]} 46. g4 {[%clk 0:00:24.2]} 46... Kc4 {[%clk 0:00:25.7]} 47. f5 {[%clk
0:00:23.4]} 47... Kb3 {[%clk 0:00:26.4]} 48. f6 {[%clk 0:00:21.6]} 48... Bg6
{[%clk 0:00:26.6]} 49. h4 {[%clk 0:00:17.9]} 49... Kxb2 {[%clk 0:00:23.3]} 50.
h5 {[%clk 0:00:19]} 50... Bf7 {[%clk 0:00:23.9]} 51. c4 {[%clk 0:00:20.4]} 51...
a3 {[%clk 0:00:24.4]} 52. c5 {[%clk 0:00:21.9]} 52... a2 {[%clk 0:00:25.6]} 53.
c6 {[%clk 0:00:23.4]} 53... a1=Q {[%clk 0:00:26.1]} 54. c7 {[%clk 0:00:24.9]}
54... Qc1 {[%clk 0:00:12.4]} 55. Kh3 {[%clk 0:00:24.5]} 55... Qxc7 {[%clk
0:00:12.8]} 56. Kh4 {[%clk 0:00:26]} 56... Qf4 {[%clk 0:00:12.5]} 57. Kh3 {[%clk
0:00:24.9]} 57... Qxf6 {[%clk 0:00:13.2]} 58. Kg3 {[%clk 0:00:24.7]} 58... Qg5
{[%clk 0:00:13.7]} 59. h6 {[%clk 0:00:26]} 59... Be6 {[%clk 0:00:14.2]} 60. Kf3
{[%clk 0:00:25.1]} 60... Qxg4+ {[%clk 0:00:14.3]} 61. Ke3 {[%clk 0:00:26.5]}
61... Kc3 {[%clk 0:00:14.8]} 62. Kf2 {[%clk 0:00:27]} 62... Qh3 {[%clk
0:00:15.5]} 63. Ke2 {[%clk 0:00:26.9]} 63... Kd4 {[%clk 0:00:16]} 64. Kf2 {[%clk
0:00:27.6]} 64... Ke4 {[%clk 0:00:16.9]} 65. Ke2 {[%clk 0:00:28.4]} 65... Qg2+
{[%clk 0:00:17.9]} 0-1

[Event "*** Titled Tuesday Blitz"]
[Site "Chess.com"]
[Date "2020.01.07"]
[Round "4"]
[White "GadimbayliA"]
[Black "13MiRacLe"]
[Result "1-0"]
[WhiteElo "2964"]
[BlackElo "2701"]
[TimeControl "180+2"]
[EndTime "13:56:51 PST"]
[Termination "GadimbayliA won by resignation"]

1. e4 {[%clk 0:03:01.9]} 1... e5 {[%clk 0:03:00.9]} 2. Nf3 {[%clk 0:03:01.7]}
2... Nc6 {[%clk 0:03:02]} 3. Nc3 {[%clk 0:03:02.7]} 3... Nf6 {[%clk 0:03:02.9]}
4. d4 {[%clk 0:03:03.1]} 4... exd4 {[%clk 0:03:02.9]} 5. Nxd4 {[%clk 0:03:05]}
5... Bb4 {[%clk 0:03:04.3]} 6. Nxc6 {[%clk 0:03:05.2]} 6... bxc6 {[%clk
0:03:06.2]} 7. Bd3 {[%clk 0:03:05.8]} 7... d5 {[%clk 0:03:07.5]} 8. exd5 {[%clk
0:03:07.7]} 8... cxd5 {[%clk 0:03:09.4]} 9. O-O {[%clk 0:03:08.3]} 9... O-O
{[%clk 0:03:10.8]} 10. Bg5 {[%clk 0:03:08.5]} 10... c6 {[%clk 0:03:12.1]} 11.
Qf3 {[%clk 0:03:08.8]} 11... h6 {[%clk 0:03:12.8]} 12. Bxf6 {[%clk 0:03:07.8]}
12... Qxf6 {[%clk 0:03:14.7]} 13. Qxf6 {[%clk 0:03:09.3]} 13... gxf6 {[%clk
0:03:16.6]} 14. Ne2 {[%clk 0:03:11.2]} 14... a5 {[%clk 0:03:17.3]} 15. c3 {[%clk
0:02:57.1]} 15... Bc5 {[%clk 0:03:18.1]} 16. Rfe1 {[%clk 0:02:57.9]} 16... Ba6
{[%clk 0:02:48.4]} 17. Bxa6 {[%clk 0:02:51.1]} 17... Rxa6 {[%clk 0:02:50.3]} 18.
Ng3 {[%clk 0:02:52.8]} 18... Rb8 {[%clk 0:02:47.9]} 19. Re2 {[%clk 0:02:49.7]}
19... a4 {[%clk 0:02:49]} 20. Rc1 {[%clk 0:02:34.5]} 20... Kh7 {[%clk
0:02:24.7]} 21. Nh5 {[%clk 0:02:23.1]} 21... Kg6 {[%clk 0:02:05.3]} 22. Nf4+
{[%clk 0:02:23.3]} 22... Kh7 {[%clk 0:02:06.1]} 23. Nd3 {[%clk 0:02:10.5]} 23...
Bd6 {[%clk 0:02:07]} 24. c4 {[%clk 0:02:07.5]} 24... dxc4 {[%clk 0:01:53.8]} 25.
Rxc4 {[%clk 0:02:09.4]} 25... a3 {[%clk 0:01:55.3]} 26. b3 {[%clk 0:02:00.1]}
26... Rxb3 {[%clk 0:01:35.6]} 27. axb3 {[%clk 0:02:02]} 27... a2 {[%clk
0:01:36.8]} 28. Rxa2 {[%clk 0:02:03.1]} 28... Rxa2 {[%clk 0:01:37.5]} 29. g3
{[%clk 0:02:05]} 29... Ra6 {[%clk 0:01:37.4]} 30. Kg2 {[%clk 0:02:02.1]} 30...
Rb6 {[%clk 0:01:37.9]} 31. b4 {[%clk 0:02:01.1]} 31... Kg7 {[%clk 0:01:37.5]}
32. Kf3 {[%clk 0:01:59.9]} 32... Ra6 {[%clk 0:01:38]} 33. Ke4 {[%clk 0:01:59.8]}
33... Rb6 {[%clk 0:01:34.9]} 34. f4 {[%clk 0:01:57.9]} 34... Kg6 {[%clk
0:01:33.2]} 35. Rd4 {[%clk 0:01:51.3]} 35... Bf8 {[%clk 0:01:26.5]} 36. f5+
{[%clk 0:01:47.9]} 36... Kg7 {[%clk 0:01:26.4]} 37. Rc4 {[%clk 0:01:48.5]} 37...
Bd6 {[%clk 0:01:25.3]} 38. Rd4 {[%clk 0:01:48.2]} 38... Bf8 {[%clk 0:01:24.6]}
39. g4 {[%clk 0:01:43.2]} 39... Rb8 {[%clk 0:01:15.6]} 40. Kf3 {[%clk
0:01:39.4]} 40... Rb5 {[%clk 0:01:13]} 41. Ke4 {[%clk 0:01:37]} 41... Rb8 {[%clk
0:01:09.3]} 42. Rc4 {[%clk 0:01:36.8]} 42... Rb6 {[%clk 0:01:09.8]} 43. h3
{[%clk 0:01:35.6]} 43... Bd6 {[%clk 0:01:09.9]} 44. Kd4 {[%clk 0:01:34.3]} 44...
Bf8 {[%clk 0:01:07.5]} 45. Nc5 {[%clk 0:01:30.4]} 45... Rb5 {[%clk 0:00:59.1]}
46. Kc3 {[%clk 0:01:28.7]} 46... Bd6 {[%clk 0:00:38]} 47. Ne4 {[%clk 0:01:26.8]}
47... Be7 {[%clk 0:00:21.4]} 48. Ng3 {[%clk 0:01:21.3]} 48... Kf8 {[%clk
0:00:10.6]} 49. Rxc6 {[%clk 0:01:18.7]} 49... Bxb4+ {[%clk 0:00:08.1]} 50. Kc4
{[%clk 0:01:19.6]} 50... Rb7 {[%clk 0:00:09]} 51. Rxf6 {[%clk 0:01:17.4]} 51...
Bd2 {[%clk 0:00:08.5]} 52. Ne4 {[%clk 0:01:13.5]} 52... Bf4 {[%clk 0:00:09.5]}
53. Rc6 {[%clk 0:01:11.7]} 53... Ra7 {[%clk 0:00:10.3]} 54. f6 {[%clk
0:01:07.4]} 54... Kg8 {[%clk 0:00:11.1]} 55. h4 {[%clk 0:01:03.7]} 55... Ra4+
{[%clk 0:00:11.5]} 56. Kd5 {[%clk 0:01:02.2]} 56... Ra5+ {[%clk 0:00:12.4]} 57.
Nc5 {[%clk 0:01:00.8]} 57... Bg3 {[%clk 0:00:10.9]} 58. h5 {[%clk 0:01:01.2]}
58... Bh4 {[%clk 0:00:11.4]} 59. Rd6 {[%clk 0:00:52.4]} 59... Ra1 {[%clk
0:00:08.8]} 60. Rd8+ {[%clk 0:00:50]} 60... Kh7 {[%clk 0:00:09.7]} 61. Nd7
{[%clk 0:00:51.9]} 61... Rd1+ {[%clk 0:00:07.8]} 62. Ke4 {[%clk 0:00:51.4]}
62... Re1+ {[%clk 0:00:09.1]} 63. Kd3 {[%clk 0:00:52.3]} 63... Rd1+ {[%clk
0:00:07.3]} 64. Ke2 {[%clk 0:00:50.9]} 64... Rd6 {[%clk 0:00:08.8]} 65. Nf8+
{[%clk 0:00:50.1]} 1-0

[Event "*** Titled Tuesday Blitz"]
[Site "Chess.com"]
[Date "2020.01.07"]
[Round "4"]
[White "KRASAVCHIK2002"]
[Black "chessbia"]
[Result "1-0"]
[WhiteElo "2465"]
[BlackElo "2192"]
[TimeControl "180+2"]
[EndTime "13:56:56 PST"]
[Termination "KRASAVCHIK2002 won by resignation"]

1. e4 {[%clk 0:03:01.9]} 1... e5 {[%clk 0:03:00.3]} 2. Nf3 {[%clk 0:03:02.7]}
2... Nc6 {[%clk 0:03:01.5]} 3. Bb5 {[%clk 0:03:03.4]} 3... a6 {[%clk 0:03:02.9]}
4. Ba4 {[%clk 0:03:03.5]} 4... Nf6 {[%clk 0:03:04.5]} 5. O-O {[%clk 0:03:04.1]}
5... Be7 {[%clk 0:03:06.2]} 6. Re1 {[%clk 0:03:04.2]} 6... b5 {[%clk 0:03:07.9]}
7. Bb3 {[%clk 0:03:05.4]} 7... O-O {[%clk 0:03:09.8]} 8. c3 {[%clk 0:03:05.9]}
8... d5 {[%clk 0:03:07.7]} 9. exd5 {[%clk 0:03:04.8]} 9... Nxd5 {[%clk
0:03:09.6]} 10. Nxe5 {[%clk 0:03:06]} 10... Nxe5 {[%clk 0:03:11.5]} 11. Rxe5
{[%clk 0:03:07.6]} 11... c6 {[%clk 0:03:13.4]} 12. d4 {[%clk 0:03:01.3]} 12...
Bd6 {[%clk 0:03:13.4]} 13. Re1 {[%clk 0:02:53.6]} 13... Qh4 {[%clk 0:03:14.1]}
14. g3 {[%clk 0:02:54.2]} 14... Qh3 {[%clk 0:03:15.6]} 15. Qf3 {[%clk
0:02:52.5]} 15... Bg4 {[%clk 0:03:12.7]} 16. Qg2 {[%clk 0:02:48.8]} 16... Qh5
{[%clk 0:03:14.1]} 17. Be3 {[%clk 0:02:36.4]} 17... Bf3 {[%clk 0:03:06.4]} 18.
Qf1 {[%clk 0:02:35.5]} 18... Rae8 {[%clk 0:02:47.4]} 19. Nd2 {[%clk 0:02:33]}
19... Bg4 {[%clk 0:02:48.3]} 20. a4 {[%clk 0:02:21.9]} 20... Kh8 {[%clk
0:02:48.6]} 21. axb5 {[%clk 0:02:21.6]} 21... axb5 {[%clk 0:02:50.5]} 22. Bxd5
{[%clk 0:02:09.4]} 22... Qxd5 {[%clk 0:02:42.8]} 23. Qg2 {[%clk 0:02:08.8]}
23... Qh5 {[%clk 0:02:15.1]} 24. Qxc6 {[%clk 0:02:09.3]} 24... Re6 {[%clk
0:02:16.3]} 25. Ra8 {[%clk 0:02:04.7]} 25... h6 {[%clk 0:01:45.6]} 26. Rxf8+
{[%clk 0:02:03.6]} 26... Bxf8 {[%clk 0:01:47.2]} 27. Qa8 {[%clk 0:02:02.5]}
27... Kg8 {[%clk 0:01:42.2]} 28. Ra1 {[%clk 0:01:53.4]} 28... Bh3 {[%clk
0:01:11.6]} 29. Qf3 {[%clk 0:01:49.7]} 29... Qg6 {[%clk 0:01:09.4]} 30. d5
{[%clk 0:01:41.7]} 30... Rf6 {[%clk 0:01:07.1]} 31. Qe4 {[%clk 0:01:38.5]} 31...
Qh5 {[%clk 0:00:57.5]} 32. f3 {[%clk 0:01:31.9]} 32... Rd6 {[%clk 0:00:09.4]}
33. Ra8 {[%clk 0:01:21.6]} 33... Rxd5 {[%clk 0:00:10.7]} 34. Qe8 {[%clk
0:01:16.3]} 34... Rxd2 {[%clk 0:00:11.8]} 35. Qxf8+ {[%clk 0:01:07]} 35... Kh7
{[%clk 0:00:13.4]} 36. Qg8+ {[%clk 0:00:37.6]} 36... Kg6 {[%clk 0:00:14.2]} 37.
Ra6+ {[%clk 0:00:35.3]} 37... Be6 {[%clk 0:00:14.7]} 38. Rxe6+ {[%clk
0:00:33.3]} 38... fxe6 {[%clk 0:00:13.4]} 39. Qxe6+ {[%clk 0:00:35.2]} 39... Kh7
{[%clk 0:00:14.1]} 40. Bxd2 {[%clk 0:00:36.5]} 40... Qxf3 {[%clk 0:00:15.2]} 41.
Qe3 {[%clk 0:00:34.4]} 41... Qd1+ {[%clk 0:00:15.6]} 42. Kg2 {[%clk 0:00:33.3]}
42... Qc2 {[%clk 0:00:15.9]} 43. b4 {[%clk 0:00:33.7]} 43... h5 {[%clk
0:00:16.4]} 44. Qd4 {[%clk 0:00:32.8]} 44... Qf5 {[%clk 0:00:13.2]} 45. c4
{[%clk 0:00:28.3]} 45... bxc4 {[%clk 0:00:12.2]} 46. Qxc4 {[%clk 0:00:30.2]}
46... Qe5 {[%clk 0:00:08.9]} 47. Qd3+ {[%clk 0:00:29.8]} 47... g6 {[%clk
0:00:09.6]} 48. b5 {[%clk 0:00:31]} 48... h4 {[%clk 0:00:08.8]} 49. gxh4 {[%clk
0:00:31.2]} 49... Qe6 {[%clk 0:00:04.4]} 50. Be3 {[%clk 0:00:26.9]} 50... Qg4+
{[%clk 0:00:05.3]} 51. Kf1 {[%clk 0:00:24.3]} 51... Qf3+ {[%clk 0:00:06.3]} 52.
Ke1 {[%clk 0:00:24.2]} 52... Qh1+ {[%clk 0:00:07.2]} 53. Kd2 {[%clk 0:00:22.5]}
53... Qxh2+ {[%clk 0:00:08.4]} 54. Kc3 {[%clk 0:00:22.8]} 54... Qe5+ {[%clk
0:00:08.9]} 55. Kb4 {[%clk 0:00:22.6]} 55... Qe7+ {[%clk 0:00:08]} 56. Bc5
{[%clk 0:00:22.8]} 56... Qxh4+ {[%clk 0:00:09.1]} 57. Ka5 {[%clk 0:00:22.5]}
57... Qe1+ {[%clk 0:00:10.3]} 58. Ka6 {[%clk 0:00:21.5]} 58... Kh6 {[%clk
0:00:11.1]} 59. b6 {[%clk 0:00:21.9]} 59... Qa1+ {[%clk 0:00:10.8]} 60. Kb7
{[%clk 0:00:21.9]} 60... g5 {[%clk 0:00:12.3]} 61. Kc6 {[%clk 0:00:19.2]} 61...
g4 {[%clk 0:00:13.5]} 62. b7 {[%clk 0:00:19.9]} 62... Qh1+ {[%clk 0:00:14.4]}
63. Qd5 {[%clk 0:00:20.3]} 63... Qxd5+ {[%clk 0:00:13.6]} 64. Kxd5 {[%clk
0:00:21.2]} 64... g3 {[%clk 0:00:15.5]} 65. b8=Q {[%clk 0:00:22.6]} 1-0

[Event "*** Titled Tuesday Blitz"]
[Site "Chess.com"]
[Date "2020.01.07"]
[Round "4"]
[White "KhazarBabazada"]
[Black "VincentKeymer"]
[Result "1-0"]
[WhiteElo "2924"]
[BlackElo "2684"]
[TimeControl "180+2"]
[EndTime "13:57:24 PST"]
[Termination "KhazarBabazada won by resignation"]

1. e4 {[%clk 0:03:01.9]} 1... c5 {[%clk 0:02:56.9]} 2. Nf3 {[%clk 0:03:03.1]}
2... e6 {[%clk 0:02:57.1]} 3. d4 {[%clk 0:03:04.7]} 3... cxd4 {[%clk 0:02:57.8]}
4. Nxd4 {[%clk 0:03:06.6]} 4... a6 {[%clk 0:02:59.3]} 5. Bd3 {[%clk 0:03:06.3]}
5... g6 {[%clk 0:02:52.1]} 6. O-O {[%clk 0:03:07.3]} 6... Bg7 {[%clk 0:02:51.9]}
7. Nb3 {[%clk 0:03:08.9]} 7... Ne7 {[%clk 0:02:50.2]} 8. f4 {[%clk 0:03:10.4]}
8... O-O {[%clk 0:02:50.6]} 9. f5 {[%clk 0:03:11.9]} 9... exf5 {[%clk
0:02:43.6]} 10. exf5 {[%clk 0:03:12.9]} 10... d5 {[%clk 0:02:38]} 11. f6 {[%clk
0:03:01.1]} 11... Qb6+ {[%clk 0:02:37.2]} 12. Kh1 {[%clk 0:03:02.8]} 12... Bxf6
{[%clk 0:02:36.7]} 13. Nc3 {[%clk 0:03:04.5]} 13... Bg7 {[%clk 0:02:33.2]} 14.
Bg5 {[%clk 0:03:05]} 14... Nbc6 {[%clk 0:02:33.8]} 15. Qe2 {[%clk 0:02:58.6]}
15... Be6 {[%clk 0:02:32.7]} 16. Rae1 {[%clk 0:02:59.2]} 16... Rae8 {[%clk
0:02:31.7]} 17. Na4 {[%clk 0:03:00]} 17... Qc7 {[%clk 0:02:32.7]} 18. Nac5
{[%clk 0:02:58.4]} 18... Nc8 {[%clk 0:02:16.7]} 19. Qf2 {[%clk 0:02:53.8]} 19...
Nd6 {[%clk 0:02:12.9]} 20. Bf4 {[%clk 0:02:38]} 20... Qd8 {[%clk 0:02:04.4]} 21.
h4 {[%clk 0:02:31.8]} 21... Bg4 {[%clk 0:01:50.8]} 22. Qg3 {[%clk 0:02:31]}
22... Rxe1 {[%clk 0:01:12.6]} 23. Rxe1 {[%clk 0:02:32.9]} 23... Nf5 {[%clk
0:01:09.2]} 24. Qxg4 {[%clk 0:02:33]} 24... h5 {[%clk 0:01:10.4]} 25. Qh3 {[%clk
0:02:32.1]} 25... Nxh4 {[%clk 0:01:09.8]} 26. Nxb7 {[%clk 0:02:32.1]} 26... Qf6
{[%clk 0:01:10.6]} 27. Bg3 {[%clk 0:02:28.5]} 27... Nf5 {[%clk 0:01:08.1]} 28.
Bxf5 {[%clk 0:02:29.7]} 28... gxf5 {[%clk 0:01:10]} 29. Rf1 {[%clk 0:02:29.7]}
29... Re8 {[%clk 0:01:04.4]} 30. Rxf5 {[%clk 0:02:29.2]} 30... Qg6 {[%clk
0:00:59.4]} 31. Nd6 {[%clk 0:02:26.2]} 31... Re3 {[%clk 0:00:56.7]} 32. Rf3
{[%clk 0:02:09.3]} 32... Rxf3 {[%clk 0:00:57]} 33. gxf3 {[%clk 0:02:11.2]} 33...
Qxc2 {[%clk 0:00:55.7]} 34. Qc8+ {[%clk 0:02:11.6]} 34... Bf8 {[%clk 0:00:55.5]}
35. Qf5 {[%clk 0:02:02.5]} 35... Qd1+ {[%clk 0:00:55.6]} 36. Kg2 {[%clk
0:02:03.7]} 36... Qe2+ {[%clk 0:00:56.3]} 37. Kh3 {[%clk 0:02:00.2]} 37... Qf1+
{[%clk 0:00:56.3]} 38. Kh2 {[%clk 0:01:44.8]} 38... Bxd6 {[%clk 0:00:34.5]} 39.
Qg5+ {[%clk 0:01:42.1]} 39... Kh7 {[%clk 0:00:34.4]} 40. Qxh5+ {[%clk
0:01:43.5]} 40... Kg8 {[%clk 0:00:35.2]} 41. Qg5+ {[%clk 0:01:44.4]} 41... Kh7
{[%clk 0:00:35.9]} 42. Bxd6 {[%clk 0:01:45.9]} 42... Qxf3 {[%clk 0:00:36.1]} 43.
Bf4 {[%clk 0:01:41.5]} 43... Qf2+ {[%clk 0:00:34.1]} 44. Kh3 {[%clk 0:01:41]}
44... Qf3+ {[%clk 0:00:34.8]} 45. Kh4 {[%clk 0:01:38.9]} 45... Qh1+ {[%clk
0:00:33.3]} 46. Kg4 {[%clk 0:01:39.9]} 46... Qg2+ {[%clk 0:00:33.5]} 47. Bg3
{[%clk 0:01:31.9]} 47... Qe4+ {[%clk 0:00:32.4]} 48. Kh3 {[%clk 0:01:32.3]}
48... Qh1+ {[%clk 0:00:32.7]} 49. Bh2 {[%clk 0:01:31.2]} 49... Qf3+ {[%clk
0:00:29.6]} 50. Kh4 {[%clk 0:01:32.5]} 50... Qe4+ {[%clk 0:00:24.9]} 51. Qg4
{[%clk 0:01:34]} 51... Qe1+ {[%clk 0:00:24.5]} 52. Bg3 {[%clk 0:01:33.5]} 52...
Qh1+ {[%clk 0:00:24.4]} 53. Qh3 {[%clk 0:01:21.3]} 53... Qf3 {[%clk 0:00:19.5]}
54. Kg5+ {[%clk 0:01:21]} 54... Kg8 {[%clk 0:00:20.6]} 55. Qc8+ {[%clk
0:00:48.6]} 55... Kg7 {[%clk 0:00:20.5]} 56. Qxc6 {[%clk 0:00:45.4]} 56... Qxg3+
{[%clk 0:00:21.3]} 57. Kf5 {[%clk 0:00:43.3]} 57... Qf3+ {[%clk 0:00:21.3]} 58.
Ke5 {[%clk 0:00:42.6]} 58... Qe2+ {[%clk 0:00:20.9]} 59. Kxd5 {[%clk 0:00:42.2]}
59... Qxb2 {[%clk 0:00:22]} 60. Qxa6 {[%clk 0:00:38.7]} 60... Qg2+ {[%clk
0:00:22.9]} 61. Kc5 {[%clk 0:00:39.4]} 61... Qc2+ {[%clk 0:00:23.9]} 62. Kb4
{[%clk 0:00:37.7]} 62... f5 {[%clk 0:00:25]} 63. Qb7+ {[%clk 0:00:36.5]} 63...
Kg6 {[%clk 0:00:24.3]} 64. Qf3 {[%clk 0:00:33.7]} 64... Qc7 {[%clk 0:00:21.9]}
65. a4 {[%clk 0:00:27.4]} 65... Qd6+ {[%clk 0:00:22.1]} 66. Nc5 {[%clk
0:00:26.8]} 66... Qd4+ {[%clk 0:00:20.6]} 67. Kb5 {[%clk 0:00:27.3]} 67... Qb2+
{[%clk 0:00:22.2]} 68. Kc6 {[%clk 0:00:27.5]} 68... Qb8 {[%clk 0:00:21.5]} 69.
Qg2+ {[%clk 0:00:26.5]} 69... Kf7 {[%clk 0:00:21.6]} 70. Qd5+ {[%clk 0:00:26.9]}
70... Kg6 {[%clk 0:00:22.8]} 71. Qd6+ {[%clk 0:00:26]} 71... Qxd6+ {[%clk
0:00:23]} 72. Kxd6 {[%clk 0:00:27.9]} 72... f4 {[%clk 0:00:24.5]} 73. Nd3 {[%clk
0:00:27.1]} 73... f3 {[%clk 0:00:26.4]} 74. Kd5 {[%clk 0:00:26.9]} 74... Kf5
{[%clk 0:00:28.3]} 75. a5 {[%clk 0:00:26.8]} 1-0